bitfinex-derivatives/quotes_SOLF0:USTF0_20251221
["timestamp","ask_amount","ask_price","bid_price","bid_amount"]
[1766352750838,0.00386456,125.3,125.29,3.19]
[1766352758344,3.33,125.37,125.31,3.43]
[1766352758543,3.33,125.37,125.32,3.43]
[1766352759148,0.05743386,125.36,125.33,0.05068738]
[1766352768263,3.33,125.4,125.33,3.48068738]
[1766352769163,0.0566786,125.38,125.33,3.48068738]
[1766352773664,1.71243591,125.34,125.25,3.43]
[1766352774566,0.05171957,125.31,125.28,0.05540533]
[1766352780774,0.05171957,125.31,125.28,3.48540533]
[1766352793075,1.71243591,125.35,125.28,3.48540533]
[1766352794175,0.05567099,125.33,125.28,3.48540533]
[1766352794375,0.05567099,125.33,125.3,3.39]
[1766352794574,0.0575413,125.33,125.3,3.39]
[1766352823209,7.42126267,125.38,125.3,3.39]
[1766352823408,7.42126267,125.39,125.3,3.39]
[1766352824105,0.05906321,125.36,125.33,3.2659076]
[1766352828302,10.09762726,125.4,125.33,3.2659076]
[1766352828502,2.67636459,125.4,125.33,3.2659076]
[1766352829215,0.05368324,125.38,125.33,3.2659076]
[1766352861937,1.76548279,125.38,125.33,3.2659076]
[1766352869326,1.76548279,125.38,125.33,0.0559076]
[1766352869532,1.71179955,125.36,125.33,0.0559076]
[1766352879041,1.71226435,125.37,125.33,0.0559076]
[1766352897054,1.71226435,125.35,125.33,0.0559076]
[1766352897252,1.76722923,125.35,125.33,0.0559076]
[1766352898550,1.76722923,125.35,125.3,3.23]
[1766352899553,1.76722923,125.35,125.31,0.05685616]
[1766352900347,1.71226435,125.33,125.31,0.05685616]
[1766352902151,1.71226435,125.33,125.28,3.23]
[1766352903347,0.05619565,125.32,125.29,0.05871279]
[1766352931381,2.73284099,125.32,125.26,14.0]
[1766352932383,2.73284099,125.32,125.28,0.05217859]
[1766352932577,9.91724099,125.32,125.26,14.0]
[1766352933580,9.91724099,125.32,125.28,0.000366]
[1766352933778,9.91724099,125.32,125.26,14.0]
[1766352935486,9.91724099,125.32,125.26,17.33]
[1766352936789,57.07724099,125.32,125.26,17.33]
[1766352937483,49.89284099,125.32,125.26,17.33]
[1766352937684,0.05619565,125.32,125.27,3.33]
[1766352955301,49.83664534,125.34,125.27,3.33]
[1766352955503,2.67664534,125.36,125.28,3.33]
[1766352956413,0.05260575,125.33,125.31,3.39068916]
[1766352960716,0.00260575,125.33,125.31,3.39068916]
[1766352961616,2.67599896,125.37,125.32,3.33]
[1766352961819,2.67599896,125.37,125.33,3.33]
[1766352962619,0.05776729,125.36,125.34,0.05746822]
[1766352969622,0.05776729,125.36,125.32,14.0]
[1766352970619,0.05776729,125.36,125.33,0.05400527]
[1766352972329,0.05776729,125.36,125.33,14.05400527]
[1766352975131,0.05776729,125.36,125.33,17.37400527]
[1766352981953,1.77002137,125.36,125.33,17.37400527]
[1766352989253,1.71225408,125.41,125.34,3.43]
[1766352989450,1.71225408,125.41,125.35,3.43]
[1766352990459,0.0601077,125.39,125.37,0.05868268]
[1766352990658,0.0601077,125.39,125.37,14.05868268]
[1766352992056,0.0001077,125.39,125.37,17.48868268]
[1766353030981,0.0001077,125.39,125.35,3.35]
[1766353032072,0.0001077,125.39,125.36,0.05207385]
[1766353032983,0.0001077,125.39,125.36,3.40207385]
[1766353040996,1.71139979,125.39,125.36,0.05207385]
[1766353041202,8.89179979,125.39,125.36,0.05207385]
[1766353041896,8.89179979,125.39,125.34,3.35]
[1766353042293,7.1808,125.38,125.34,3.35]
[1766353042599,1.71129209,125.37,125.32,3.35]
[1766353042797,0.05903204,125.36,125.33,0.05059102]
[1766353045802,7.24113204,125.36,125.28,2.6754001]
[1766353045993,7.24113204,125.36,125.26,2.6754001]
[1766353045994,7.1821,125.36,125.26,2.6754001]
[1766353046798,0.05339423,125.32,125.26,2.6754001]
[1766353047799,0.05339423,125.32,125.27,3.4]
[1766353057012,0.05339423,125.32,125.22,63.0]
[1766353057199,0.06127951,125.28,125.22,63.0]
[1766353059004,0.06127951,125.28,125.23,3.45]
[1766353062016,0.06127951,125.28,125.18,3.45]
[1766353062215,114.4582001,125.29,125.18,3.45]
[1766353062216,0.05501558,125.24,125.18,3.45]
[1766353065821,7.24391558,125.24,125.18,3.45]
[1766353066212,0.05501558,125.24,125.18,3.45]
[1766353077111,47.16,125.25,125.21,3.45]
[1766353077629,36.6,125.25,125.21,3.45]
[1766353079228,0.05100463,125.24,125.21,3.45]
[1766353079427,0.00100463,125.24,125.21,3.45]
[1766353080423,29.56100463,125.25,125.21,3.45]
[1766353080628,0.1,125.28,125.21,3.45]
[1766353081428,0.06102761,125.26,125.23,0.05561686]
[1766353091639,3.26102761,125.26,125.23,0.05561686]
[1766353100847,10.44872761,125.26,125.23,0.05561686]
[1766353118352,10.44872761,125.26,125.17,47.18]
[1766353118353,3.26,125.24,125.17,3.25]
[1766353119456,0.05328096,125.22,125.19,0.05710018]
[1766353120461,0.05328096,125.22,125.19,3.30710018]
[1766353120958,0.00328096,125.22,125.19,3.30710018]
[1766353123565,3.26,125.27,125.21,3.25]
[1766353124469,0.05341684,125.25,125.23,0.05269108]
[1766353150091,0.00341684,125.25,125.23,3.38269108]
[1766353150281,47.18,125.28,125.23,3.38269108]
[1766353150474,3.5,125.3,125.23,3.38269108]
[1766353151280,0.0577118,125.28,125.23,3.38269108]
[1766353154891,0.0577118,125.28,125.23,10.57169108]
[1766353155187,1.71566111,125.31,125.24,3.28]
[1766353155390,50.68,125.32,125.24,3.28]
[1766353155689,50.68,125.32,125.25,3.23]
[1766353155690,3.5,125.31,125.25,3.23]
[1766353156392,0.05888075,125.29,125.27,0.05260321]
[1766353172406,3.38888075,125.29,125.23,66.23]
[1766353172600,3.38888075,125.29,125.23,3.23]
[1766353173397,3.38888075,125.29,125.25,0.0522501]
[1766353173605,3.33,125.28,125.25,0.0522501]
[1766353173802,3.33,125.27,125.21,3.33]
[1766353174199,3.33,125.27,125.19,3.33]
[1766353174798,0.05822964,125.24,125.22,0.05626269]
[1766353176211,3.37822964,125.24,125.19,3.33]
[1766353176405,3.37822964,125.24,125.17,50.53]
[1766353176912,3.32,125.23,125.17,3.37]
[1766353177304,0.05125091,125.21,125.19,0.05615853]
[1766353177811,3.25125091,125.21,125.15,3.32]
[1766353178012,3.2,125.21,125.15,3.32]
[1766353178210,3.2,125.21,125.13,3.32]
[1766353178904,0.05644785,125.18,125.16,0.05191749]
[1766353192217,3.25644785,125.18,125.16,0.00191749]
[1766353192424,3.25644785,125.18,125.13,3.32]
[1766353201023,0.05644785,125.18,125.13,3.32]
[1766353214658,3.38644785,125.18,125.13,3.32]
[1766353221350,3.33,125.17,125.11,3.3]
[1766353221551,0.05056451,125.15,125.11,3.3]
[1766353224955,3.38056451,125.15,125.09,3.3]
[1766353225257,0.0508961,125.13,125.09,3.3]
[1766353226254,3.3808961,125.13,125.07,3.3]
[1766353239674,0.0508961,125.13,125.07,3.3]
[1766353247081,0.0008961,125.13,125.07,5.01825749]
[1766353247281,3.37,125.19,125.1,3.44]
[1766353247981,1.71825749,125.18,125.1,3.44]
[1766353248178,0.05846337,125.15,125.13,0.0546542]
[1766353252188,3.37,125.19,125.13,3.4946542]
[1766353252483,3.37,125.19,125.13,3.44]
[1766353252484,3.37,125.18,125.13,3.44]
[1766353253194,0.06133538,125.17,125.14,0.05866293]
[1766353256191,0.06133538,125.17,125.15,1.71825749]
[1766353258790,3.37,125.18,125.15,1.71825749]
[1766353259694,3.43132317,125.18,125.15,1.71825749]
[1766353261496,3.37,125.2,125.17,1.71825749]
[1766353261705,65.17181304,125.22,125.17,1.71825749]
[1766353262497,0.05469996,125.21,125.18,0.05094911]
[1766353262796,3.42469996,125.21,125.18,0.05094911]
[1766353277811,0.05469996,125.21,125.18,5.1492066]
[1766353280316,0.05469996,125.21,125.18,5.14635534]
[1766353287615,0.05469996,125.21,125.18,3.43094911]
[1766353290318,50.47,125.25,125.19,5.04540623]
[1766353290512,57.6582,125.25,125.19,5.04540623]
[1766353290819,3.27,125.24,125.19,5.04540623]
[1766353291318,0.05645499,125.23,125.2,0.05083436]
[1766353294116,0.05645499,125.23,125.2,3.38083436]
[1766353299021,0.05645499,125.23,125.2,0.05083436]
[1766353329655,3.28645499,125.23,125.2,0.05083436]
[1766353336843,3.28645499,125.23,125.2,0.00083436]
[1766353342254,3.23,125.22,125.15,63.0]
[1766353342448,3.23,125.22,125.15,3.38]
[1766353342958,3.23,125.21,125.15,3.38]
[1766353343349,0.0581183,125.19,125.17,0.05937413]
[1766353352859,3.34,125.22,125.17,3.24937413]
[1766353353063,3.34,125.24,125.18,3.19]
[1766353354058,0.05768503,125.22,125.2,0.05991882]
[1766353388000,3.51,125.26,125.2,3.23991882]
[1766353388994,0.06007872,125.24,125.2,3.23991882]
[1766353395291,0.06007872,125.24,125.2,10.43071882]
[1766353396205,0.06007872,125.24,125.21,3.18]
[1766353398296,0.06007872,125.24,125.21,10.3703]
[1766353414307,0.06007872,125.24,125.21,3.18]
[1766353420418,3.43007872,125.24,125.2,0.05991882]
[1766353430121,3.37,125.22,125.15,3.27]
[1766353430326,3.37,125.21,125.15,3.27]
[1766353431215,0.0532253,125.19,125.17,0.05079434]
[1766353441933,3.4232253,125.19,125.17,0.00079434]
[1766353443133,3.4232253,125.19,125.08,117.2736998]
[1766353443134,3.4232253,125.19,125.11,66.27]
[1766353443335,3.37,125.19,125.11,3.27]
[1766353444136,0.0544806,125.16,125.14,0.05139354]
[1766353444335,0.05528008,125.16,125.14,0.05139354]
[1766353446843,3.34528008,125.16,125.14,0.00139354]
[1766353447839,3.29,125.14,125.07,50.63]
[1766353448842,0.05369124,125.12,125.09,0.057568]
[1766353454247,3.34369124,125.12,125.07,3.43]
[1766353454444,3.34369124,125.12,125.01,3.49]
[1766353454746,3.29,125.11,125.01,3.49]
[1766353455339,0.05859519,125.07,125.05,0.05193031]
[1766353455539,0.05384373,125.07,125.05,0.05193031]
[1766353460852,0.00384373,125.07,125.05,3.54193031]
[1766353465343,0.00384373,125.07,125.05,0.05193031]
[1766353466553,3.29384373,125.07,125.05,0.00193031]
[1766353466758,3.29384373,125.07,125.01,57.8616]
[1766353467456,3.29384373,125.07,125.02,3.49]
[1766353467655,3.29384373,125.07,125.03,0.05833894]
[1766353468352,3.29384373,125.07,125.0,3.49]
[1766353468353,3.29,125.06,125.0,3.49]
[1766353469352,0.0553733,125.04,125.02,0.05137017]
[1766353470960,10.4881,125.08,125.02,3.56137017]
[1766353471353,3.47,125.07,125.02,3.56137017]
[1766353471754,0.05039567,125.06,125.02,3.56137017]
[1766353475759,3.52,125.05,124.98,73.5435]
[1766353475962,3.52,125.05,124.98,10.5435]
[1766353476261,3.52,125.05,124.98,3.34]
[1766353476858,0.05218663,125.03,125.0,0.05554531]
[1766353477060,3.52,125.08,125.01,3.34]
[1766353477953,3.52,125.08,125.03,0.05397237]
[1766353478159,0.05139128,125.06,125.03,0.05397237]
[1766353479262,3.52,125.1,125.03,3.39397237]
[1766353479466,3.52,125.12,125.04,3.34]
[1766353480369,0.05871009,125.09,125.07,0.05473221]
[1766353487669,3.52,125.12,125.07,3.39473221]
[1766353488675,0.05236678,125.11,125.07,3.39473221]
[1766353489066,0.00236678,125.11,125.07,3.39473221]
[1766353490578,0.00236678,125.11,125.08,7.1975]
[1766353490780,0.00236678,125.11,125.08,10.5275]
[1766353494778,0.00236678,125.11,125.08,3.33]
[1766353495284,0.00236678,125.11,125.07,0.05473221]
[1766353499171,3.52236678,125.11,125.07,0.05473221]
[1766353499485,1.71888061,125.1,125.07,0.05473221]
[1766353500784,3.52,125.09,125.02,50.58]
[1766353501178,1.71888061,125.06,125.0,3.34]
[1766353501786,0.06063818,125.04,125.02,0.0612659]
[1766353504780,0.06063818,125.04,125.02,0.0012659]
[1766353504986,5.29951879,125.04,124.98,3.34]
[1766353505873,5.29951879,125.04,125.0,0.05266493]
[1766353505874,3.48,125.03,125.0,0.05266493]
[1766353506074,3.48,125.03,124.98,3.34]
[1766353506075,3.48,125.01,124.95,3.23]
[1766353506278,1.71888061,125.0,124.95,3.23]
[1766353507188,0.05954223,124.99,124.96,0.05885555]
[1766353508885,3.48,125.03,124.96,3.28885555]
[1766353509891,0.05553995,125.01,124.96,3.28885555]
[1766353520197,0.05553995,125.01,124.96,10.49345555]
[1766353520501,5.19888061,125.07,124.99,3.23]
[1766353520699,5.19888061,125.07,125.0,3.23]
[1766353521398,0.05112443,125.05,125.02,0.05114411]
[1766353525195,0.05112443,125.05,125.02,3.28114411]
[1766353525399,3.48,125.09,125.03,3.23]
[1766353526301,0.05356085,125.07,125.05,0.05509196]
[1766353532513,0.05356085,125.07,125.01,10.5115]
[1766353532714,0.05356085,125.07,125.02,3.31]
[1766353533014,0.05356085,125.07,125.03,3.31]
[1766353533405,0.05356085,125.07,125.04,0.05753572]
[1766353535814,3.33356085,125.07,125.0,73.4821]
[1766353536014,3.33356085,125.07,125.01,3.28]
[1766353536821,3.33356085,125.07,125.03,0.05428787]
[1766353537124,3.33356085,125.07,124.99,3.28]
[1766353537322,3.28,125.07,124.99,3.28]
[1766353537718,5.96636896,125.06,124.99,3.28]
[1766353538216,0.05834339,125.04,125.01,0.06108713]
[1766353542730,3.33834339,125.04,124.98,10.4834]
[1766353543227,3.33834339,125.04,124.99,3.28]
[1766353543632,3.33834339,125.04,125.0,0.05154045]
[1766353547140,10.4782,125.08,125.0,3.33154045]
[1766353547437,3.28,125.07,125.0,3.28]
[1766353548340,0.05461534,125.05,125.02,0.06034813]
[1766353553743,3.33461534,125.05,125.02,0.06034813]
[1766353556150,3.33461534,125.05,125.02,0.00034813]
[1766353557547,10.53451534,125.05,125.02,0.00034813]
[1766353557743,3.28,125.04,125.02,0.00034813]
[1766353559247,3.28,125.04,124.93,3.28]
[1766353559248,7.2029,125.0,124.93,3.28]
[1766353559442,49.94636896,124.99,124.93,3.28]
[1766353559637,7.2029,125.0,124.93,3.28]
[1766353559842,47.26,125.0,124.93,3.28]
[1766353560038,0.05074711,124.98,124.95,0.06115594]
[1766353562739,2.68636896,124.97,124.91,3.28]
[1766353563146,7.204,124.98,124.91,3.28]
[1766353563756,0.05630476,124.96,124.91,3.28]
[1766353564648,49.95261082,124.99,124.91,3.28]
[1766353564958,47.26,124.99,124.91,3.28]
[1766353565153,47.26,124.99,124.92,3.37]
[1766353565855,0.0572897,124.97,124.94,3.42751673]
[1766353566851,49.98261082,125.01,124.94,3.42751673]
[1766353567752,0.05897575,124.99,124.94,3.42751673]
[1766353571875,3.09158657,124.99,124.94,0.05751673]
[1766353572369,3.09158657,124.99,124.92,3.37]
[1766353572370,3.07261082,124.97,124.92,3.37]
[1766353573057,3.07261082,124.97,124.9,3.37]
[1766353573460,0.05921972,124.95,124.92,0.05240144]
[1766353576263,0.05921972,124.95,124.91,3.37]
[1766353576763,0.57921972,124.95,124.89,42.41]
[1766353576968,0.57921972,124.95,124.88,3.37]
[1766353577160,2.69261082,124.94,124.88,3.37]
[1766353577369,0.05443053,124.92,124.88,3.37]
[1766353583777,0.00443053,124.92,124.88,3.37]
[1766353584778,0.00443053,124.92,124.89,0.05367553]
[1766353584979,0.00443053,124.92,124.89,3.42367553]
[1766353589883,0.00443053,124.92,124.89,0.05367553]
[1766353591883,0.00443053,124.92,124.89,3.94367553]
[1766353593386,7.2045,124.97,124.91,3.89]
[1766353593387,1.12,124.97,124.91,3.89]
[1766353594390,0.05362036,124.95,124.93,0.05689165]
[1766353598291,0.00362036,124.95,124.93,3.97689165]
[1766353598496,50.28289299,124.99,124.93,3.97689165]
[1766353599500,0.05457785,124.97,124.93,3.97689165]
[1766353604999,0.00457785,124.97,124.93,3.97689165]
[1766353608403,1.57,124.94,124.85,3.92]
[1766353608597,1.72262533,124.91,124.85,3.92]
[1766353608907,1.72262533,124.89,124.83,3.92]
[1766353609209,1.72262533,124.88,124.83,3.92]
[1766353609409,0.05596202,124.87,124.84,0.05142599]
[1766353610094,1.72262533,124.86,124.83,3.92]
[1766353610902,0.05596202,124.87,124.8,3.92]
[1766353611098,0.00202712,124.85,124.83,3.92]
[1766353612295,0.00202712,124.85,124.82,0.05604489]
[1766353612501,1.72262533,124.84,124.78,3.92]
[1766353613603,0.00125675,124.82,124.8,0.0521711]
[1766353614411,0.00125675,124.82,124.78,3.92]
[1766353614412,1.72388208,124.82,124.78,3.92]
[1766353614711,1.72388208,124.82,124.76,51.2]
[1766353614909,1.72388208,124.82,124.76,3.92]
[1766353615109,3.49388208,124.82,124.76,3.92]
[1766353615299,1.72262533,124.8,124.76,3.92]
[1766353615504,0.05251344,124.79,124.77,0.05356787]
[1766353616205,0.00251344,124.79,124.77,3.97356787]
[1766353616901,1.72262533,124.83,124.77,3.97356787]
[1766353617904,6.47523931,124.86,124.77,3.97356787]
[1766353618104,6.47523931,124.86,124.77,3.92]
[1766353618910,0.05309365,124.83,124.8,0.06007434]
[1766353620909,4.62523931,124.88,124.8,3.98007434]
[1766353621111,4.62523931,124.88,124.8,3.92]
[1766353621515,6.68523931,124.88,124.8,3.92]
[1766353621711,2.06,124.87,124.8,3.92]
[1766353622013,0.05198434,124.85,124.82,0.0593089]
[1766353622713,0.00198434,124.85,124.82,3.9793089]
[1766353623311,0.00198434,124.85,124.82,0.0593089]
[1766353623816,2.15,124.9,124.82,3.9793089]
[1766353624011,2.15,124.9,124.82,3.92]
[1766353624407,4.62523931,124.92,124.83,3.92]
[1766353624716,0.05461816,124.89,124.86,0.05580599]
[1766353625808,0.00461816,124.89,124.86,4.26580599]
[1766353627714,47.32,124.95,124.87,4.21]
[1766353627911,6.92523931,124.96,124.87,4.21]
[1766353628115,6.92523931,124.96,124.88,4.21]
[1766353628712,0.05500021,124.93,124.91,0.05168375]
[1766353630915,2.41,124.98,124.91,0.05168375]
[1766353631714,2.41,124.98,124.91,4.26168375]
[1766353631912,0.05830096,124.96,124.91,4.26168375]
[1766353635424,9.6827,125.0,124.91,4.26168375]
[1766353635624,9.6827,125.0,124.91,4.21]
[1766353636012,7.2033,124.99,124.91,4.21]
[1766353636413,2.56331842,124.96,124.89,4.21]
[1766353636816,2.51,124.95,124.89,4.21]
[1766353637520,0.05794198,124.93,124.91,0.05229285]
[1766353638423,0.05794198,124.93,124.91,0.00229285]
[1766353639221,0.05794198,124.93,124.86,11.4203]
[1766353639222,0.05794198,124.93,124.86,4.21]
[1766353640119,2.58794198,124.93,124.86,4.21]
[1766353640312,2.58794198,124.93,124.88,0.05679407]
[1766353640313,2.53,124.92,124.88,0.05679407]
[1766353642036,9.7373,124.92,124.88,0.05679407]
[1766353642738,9.7373,124.92,124.84,4.21]
[1766353643842,9.7373,124.92,124.87,0.00077784]
[1766353643843,0.05721193,124.89,124.87,0.00077784]
[1766353644040,0.05721193,124.89,124.82,11.4225]
[1766353644041,0.05721193,124.89,124.82,4.21]
[1766353644938,2.54721193,124.89,124.82,4.21]
[1766353645146,2.54721193,124.89,124.84,0.05471167]
[1766353645441,119.30991559,124.89,124.84,0.00471167]
[1766353645642,2.45,124.88,124.8,4.21]
[1766353646235,2.49,124.86,124.78,47.3]
[1766353646550,0.05423837,124.83,124.81,0.05417739]
[1766353650549,0.05423837,124.83,124.81,0.00417739]
[1766353650950,2.55423837,124.83,124.75,4.53]
[1766353651152,2.5,124.83,124.75,4.53]
[1766353651946,0.05351383,124.8,124.78,0.06128654]
[1766353653953,0.05351383,124.8,124.78,0.00128654]
[1766353654256,0.05351383,124.8,124.74,4.53]
[1766353655047,0.05351383,124.8,124.76,0.05308483]
[1766353655553,0.05351383,124.8,124.76,4.58308483]
[1766353658258,0.00351383,124.8,124.76,4.58308483]
[1766353661756,7.2115,124.85,124.77,4.53]
[1766353661757,9.8715,124.85,124.77,4.53]
[1766353661958,2.66,124.84,124.77,4.53]
[1766353662554,0.05635479,124.82,124.79,0.05323733]
[1766353677373,0.05635479,124.82,124.79,4.58323733]
[1766353677569,47.34,124.84,124.79,4.58323733]
[1766353678476,0.06044112,124.83,124.79,4.58323733]
[1766353680873,2.99044112,124.83,124.79,0.00323733]
[1766353681068,2.99044112,124.83,124.75,4.53]
[1766353681264,5.59767584,124.82,124.75,4.53]
[1766353681576,2.9,124.81,124.75,4.53]
[1766353682173,0.06000331,124.79,124.77,0.05057577]
[1766353689569,2.99000331,124.79,124.73,4.56]
[1766353689766,2.93,124.79,124.73,4.56]
[1766353690270,12.852768,124.81,124.73,4.56]
[1766353690472,10.1542,124.8,124.73,4.56]
[1766353690774,0.05958908,124.78,124.75,0.05259141]
[1766353695778,0.05958908,124.78,124.73,4.56]
[1766353696174,10.26498908,124.78,124.73,4.56]
[1766353696581,3.04958908,124.78,124.73,4.56]
[1766353697281,0.05958908,124.78,124.73,4.56]
[1766353699669,0.05958908,124.78,124.74,4.56]
[1766353702481,7.38993524,124.83,124.75,4.56]
[1766353702781,57.672,124.84,124.75,4.56]
[1766353702982,3.1,124.84,124.75,4.56]
[1766353703578,0.00214721,124.81,124.78,4.61685542]
[1766353704380,0.00214721,124.81,124.78,0.05685542]
[1766353710880,0.00214721,124.81,124.78,4.63685542]
[1766353711384,7.2113,124.85,124.78,4.63685542]
[1766353712371,0.05076764,124.83,124.78,4.63685542]
[1766353715890,0.00076764,124.83,124.78,4.63685542]
[1766353717487,0.00076764,124.83,124.78,11.85185542]
[1766353717788,0.00076764,124.83,124.79,4.93]
[1766353729296,0.00076764,124.83,124.8,4.93]
[1766353737320,1.72694769,124.83,124.78,4.98685542]
[1766353738019,5.17694769,124.83,124.78,4.98685542]
[1766353738221,1.72618005,124.81,124.78,4.98685542]
[1766353739522,1.72618005,124.81,124.78,0.05685542]
[1766353742024,49.06694769,124.83,124.78,0.05685542]
[1766353743125,1.72694769,124.83,124.78,0.05685542]
[1766353743424,5.20694769,124.83,124.78,0.05685542]
[1766353746527,3.48076764,124.83,124.78,0.05685542]
[1766353749227,0.00076764,124.83,124.78,4.63685542]
[1766353752627,5.25618005,124.82,124.78,0.05685542]
[1766353755528,0.00076764,124.83,124.78,4.63685542]
[1766353759340,1.72618005,124.82,124.78,4.63685542]
[1766353759541,5.27618005,124.82,124.78,0.05685542]
[1766353762247,1.72618005,124.8,124.76,4.58]
[1766353763335,0.05067308,124.79,124.77,0.05455906]
[1766353765241,0.05067308,124.79,124.74,4.58]
[1766353765539,0.05067308,124.79,124.75,4.73]
[1766353766142,0.05067308,124.79,124.76,0.05292873]
[1766353773845,3.66067308,124.79,124.76,0.05292873]
[1766353774041,3.66067308,124.79,124.76,0.00292873]
[1766353774236,3.57,124.77,124.72,4.73]
[1766353775347,0.05703302,124.76,124.72,4.73]
[1766353777248,12.52236652,124.79,124.73,5.03748009]
[1766353777548,5.30766652,124.79,124.73,4.98]
[1766353778249,0.05861037,124.77,124.75,0.05964462]
[1766353782146,60.91370976,124.81,124.75,0.05964462]
[1766353782344,53.69980976,124.81,124.75,5.03964462]
[1766353783145,0.05607178,124.79,124.75,5.03964462]
[1766353790959,3.79607178,124.79,124.75,0.05964462]
[1766353792162,3.69,124.78,124.71,57.98]
[1766353793062,0.05372812,124.76,124.73,0.05296441]
[1766353797773,3.75372812,124.76,124.73,0.00296441]
[1766353798067,3.65,124.75,124.68,57.98]
[1766353798256,3.65,124.75,124.68,4.98]
[1766353798967,0.0526415,124.73,124.68,4.98]
[1766353801369,3.66,124.77,124.69,4.98]
[1766353801571,10.9256,124.78,124.69,4.98]
[1766353801974,3.71,124.78,124.71,4.98]
[1766353802364,0.0559193,124.76,124.73,0.05366042]
[1766353802565,3.7759193,124.76,124.73,0.00366042]
[1766353803775,3.7759193,124.76,124.69,57.98]
[1766353804072,6.36980976,124.75,124.69,4.98]
[1766353804578,0.05676364,124.73,124.69,4.98]
[1766353809475,13.59844913,124.76,124.69,4.98]
[1766353809679,10.8965,124.76,124.69,4.98]
[1766353809975,3.68,124.76,124.69,4.98]
[1766353810378,0.05886205,124.74,124.71,0.05602836]
[1766353811482,0.05886205,124.74,124.71,5.13602836]
[1766353812073,10.9556,124.78,124.71,5.13602836]
[1766353812375,3.74,124.78,124.71,5.13602836]
[1766353813179,0.05145868,124.76,124.71,5.13602836]
[1766353813602,0.05145868,124.76,124.71,12.35492836]
[1766353813881,0.00145868,124.76,124.71,5.13602836]
[1766353814263,0.00145868,124.76,124.73,5.08]
[1766353816379,0.00145868,124.76,124.71,5.13602836]
[1766353816576,3.85145868,124.76,124.71,0.05602836]
[1766353816970,11.06795868,124.76,124.71,0.05602836]
[1766353817175,3.85,124.75,124.71,0.05602836]
[1766353819079,0.00145868,124.76,124.71,5.13602836]
[1766353822282,0.00145868,124.76,124.72,5.08]
[1766353823079,0.00145868,124.76,124.73,5.08]
[1766353830581,0.00145868,124.76,124.74,4.84]
[1766353830785,61.12524913,124.82,124.74,4.893979]
[1766353830980,61.12524913,124.82,124.74,4.84]
[1766353831183,3.85,124.81,124.74,4.84]
[1766353831588,3.85,124.81,124.74,12.0573]
[1766353831789,0.05545473,124.79,124.76,0.05962504]
[1766353834391,0.05545473,124.79,124.76,4.89962504]
[1766353842193,8.94044814,124.82,124.76,4.89962504]
[1766353843097,7.2133,124.82,124.76,4.89962504]
[1766353843296,0.05990486,124.8,124.76,4.89962504]
[1766353853801,1.72703512,124.82,124.76,4.89962504]
[1766353854203,1.72703512,124.82,124.77,4.78]
[1766353855009,0.05918159,124.81,124.77,4.78]
[1766353865015,4.92,124.88,124.79,4.78]
[1766353865215,1.72703512,124.85,124.79,4.78]
[1766353866020,0.05820145,124.83,124.81,0.05707863]
[1766353868323,1.72703512,124.86,124.81,5.10707863]
[1766353868826,1.72703512,124.88,124.82,5.05]
[1766353869325,0.05950768,124.86,124.84,0.05912809]
[1766353870921,0.05950768,124.86,124.79,165.2221]
[1766353870922,4.98,124.85,124.79,58.05]
[1766353871125,1.72703512,124.84,124.79,5.05]
[1766353871831,0.05338596,124.83,124.8,0.05980737]
[1766353872331,0.05338596,124.83,124.8,5.10980737]
[1766353873729,4.98,124.82,124.74,12.2674]
[1766353873924,1.72703512,124.81,124.75,5.05]
[1766353874327,4.98,124.82,124.76,5.05]
[1766353874535,1.72703512,124.83,124.76,5.05]
[1766353874733,0.06022769,124.81,124.78,0.05957361]
[1766353876031,1.78726281,124.81,124.75,5.05]
[1766353876734,1.78726281,124.81,124.76,5.05]
[1766353877137,1.78726281,124.81,124.77,0.05940722]
[1766353883731,6.76726281,124.81,124.77,0.05940722]
[1766353884046,4.98,124.8,124.77,0.05940722]
[1766353884852,1.78726281,124.81,124.77,0.05940722]